bitfinex-derivatives/quotes_BTCF0:USTF0_20260107
["timestamp","ask_amount","ask_price","bid_price","bid_amount"]
[1767750923969,0.09041273,92529.0,92510.0,0.04408506]
[1767750924374,0.09041273,92526.0,92509.0,0.09196]
[1767750924681,0.13697063,92525.0,92509.0,0.09196]
[1767750924982,0.13697063,92525.0,92512.0,0.010815]
[1767750925174,0.09041273,92524.0,92512.0,0.010815]
[1767750925370,0.09192,92541.0,92509.0,0.09196]
[1767750925371,0.13697063,92519.0,92509.0,0.09196]
[1767750925579,0.09041273,92518.0,92509.0,0.09196]
[1767750925782,0.09041273,92518.0,92508.0,0.09196]
[1767750925981,0.09041273,92518.0,92507.0,0.010815]
[1767750926284,0.09041273,92518.0,92508.0,0.09196]
[1767750926485,0.09041273,92518.0,92507.0,0.010815]
[1767750926787,0.09041273,92518.0,92509.0,0.010815]
[1767750926980,0.09041273,92518.0,92509.0,0.010085]
[1767750927178,0.09041273,92518.0,92508.0,0.002045]
[1767750927684,0.09041273,92518.0,92509.0,0.010815]
[1767750928889,0.09041273,92523.0,92511.0,0.010815]
[1767750929084,0.09041273,92523.0,92508.0,0.002045]
[1767750929385,0.09041273,92523.0,92508.0,0.01286]
[1767750929581,0.09041273,92523.0,92499.0,0.010816]
[1767750929582,0.13697063,92520.0,92499.0,0.04408506]
[1767750929773,0.010812,92537.0,92497.0,0.09196]
[1767750929774,0.0465579,92507.0,92497.0,0.09196]
[1767750929979,0.09041273,92503.0,92493.0,0.102777]
[1767750930179,0.09041273,92503.0,92495.0,0.010817]
[1767750930375,0.09041273,92503.0,92480.0,0.010819]
[1767750930588,0.09041273,92503.0,92481.0,0.49196]
[1767750930775,0.09041273,92503.0,92494.0,0.010817]
[1767750931891,0.09089686,92509.0,92492.0,0.04944615]
[1767750932080,0.09089686,92509.0,92492.0,0.06026315]
[1767750932388,0.09089686,92509.0,92493.0,0.010817]
[1767750932984,0.14361989,92509.0,92493.0,0.010817]
[1767750933375,0.09089686,92508.0,92493.0,0.010817]
[1767750933578,0.09089686,92508.0,92492.0,0.010817]
[1767750934391,0.09089686,92508.0,92494.0,0.010817]
[1767750936092,0.09089686,92508.0,92491.0,0.09196]
[1767750936285,0.09089686,92508.0,92492.0,0.010817]
[1767750936794,0.05272303,92503.0,92487.0,0.010818]
[1767750937092,0.010814,92520.0,92486.0,0.09143]
[1767750937093,0.05272303,92497.0,92486.0,0.09143]
[1767750937490,0.05272303,92497.0,92486.0,0.08904]
[1767750937784,0.05272303,92497.0,92484.0,0.09196]
[1767750939302,0.05272303,92497.0,92486.0,0.010818]
[1767750939796,0.05272303,92497.0,92484.0,0.09196]
[1767750940298,0.09089686,92500.0,92484.0,0.09196]
[1767750941197,0.09089686,92500.0,92487.0,0.010818]
[1767750941390,0.010815,92515.0,92484.0,0.09196]
[1767750941391,0.09089686,92521.0,92494.0,0.04944615]
[1767750941590,0.09196,92522.0,92511.0,0.010815]
[1767750941795,0.09196,92522.0,92501.0,0.04944615]
[1767750941796,0.09196,92522.0,92513.0,0.010815]
[1767750941998,0.09196,92522.0,92515.0,0.010814]
[1767750942382,0.09196,92522.0,92504.0,0.04944615]
[1767750942383,0.09196,92522.0,92512.0,0.010815]
[1767750942784,0.09196,92522.0,92510.0,0.010815]
[1767750943491,0.09196,92522.0,92504.0,0.04944615]
[1767750944096,0.09196,92522.0,92512.0,0.010815]
[1767750945592,0.09089686,92525.0,92514.0,0.010815]
[1767750945998,0.09089686,92531.0,92510.0,0.04944615]
[1767750946194,0.09089686,92531.0,92512.0,0.04944615]
[1767750946586,0.09089686,92531.0,92518.0,0.010814]
[1767750946898,0.14361989,92522.0,92515.0,0.09196]
[1767750947094,0.14361989,92522.0,92512.0,0.102775]
[1767750947401,0.010813,92529.0,92514.0,0.010815]
[1767750947402,0.09089686,92528.0,92514.0,0.010815]
[1767750947600,0.14361989,92528.0,92514.0,0.010815]
[1767750948200,0.14361989,92528.0,92512.0,0.09196]
[1767750948398,0.05272303,92532.0,92515.0,0.010814]
[1767750948589,0.14361989,92529.0,92512.0,0.102775]
[1767750948790,0.14361989,92525.0,92512.0,0.102775]
[1767750951595,0.09089686,92525.0,92512.0,0.102775]
[1767750952704,0.14361989,92527.0,92512.0,0.14140615]
[1767750953199,0.14361989,92527.0,92513.0,0.010815]
[1767750958005,0.05272303,92526.0,92513.0,0.010815]
[1767750958208,0.05272303,92526.0,92512.0,0.09196]
[1767750958506,0.06183999,92536.0,92513.0,0.010815]
[1767750958805,0.010813,92529.0,92513.0,0.010815]
[1767750959105,0.010813,92529.0,92514.0,0.010815]
[1767750959508,0.010813,92529.0,92512.0,0.002715]
[1767750960614,0.0489325,92528.0,92512.0,0.002715]
[1767750960806,0.0489325,92526.0,92510.0,0.09196]
[1767750961008,0.0489325,92518.0,92510.0,0.09196]
[1767750961209,0.0489325,92524.0,92511.0,0.010815]
[1767750961407,0.0489325,92522.0,92511.0,0.010815]
[1767750961913,0.0489325,92522.0,92513.0,0.010815]
[1767750962413,0.0489325,92522.0,92501.0,0.07176172]
[1767750962711,0.0489325,92522.0,92502.0,0.09196]
[1767750963115,0.0489325,92522.0,92502.0,0.14387839]
[1767750963309,0.0489325,92522.0,92511.0,0.010815]
[1767750963908,0.0489325,92522.0,92504.0,0.010816]
[1767750964108,0.0489325,92522.0,92504.0,0.06273439]
[1767750964311,0.06183999,92536.0,92515.0,0.09292403]
[1767750964507,0.14202273,92517.0,92481.0,0.010818]
[1767750964702,0.05094528,92494.0,92472.0,0.0920512]
[1767750965016,0.05094528,92488.0,92472.0,0.0920512]
[1767750965315,0.05094528,92485.0,92472.0,0.0920512]
[1767750965512,0.05094528,92484.0,92472.0,0.16111002]
[1767750965822,0.09196,92500.0,92483.0,0.010818]
[1767750966119,0.09196,92500.0,92472.0,0.15029102]
[1767750966120,0.09196,92500.0,92478.0,0.09292403]
[1767750966308,0.05094528,92510.0,92492.0,0.010817]
[1767750966518,0.05094528,92524.0,92500.0,0.103691]
[1767750966723,0.05094528,92518.0,92500.0,0.103691]
[1767750967219,0.05094528,92518.0,92502.0,0.010816]
[1767750967421,0.05094528,92518.0,92504.0,0.010816]
[1767750967623,0.05094528,92517.0,92501.0,0.010816]
[1767750967827,0.05094528,92515.0,92501.0,0.010816]
[1767750968229,0.05094528,92514.0,92501.0,0.010816]
[1767750968631,0.05094528,92512.0,92500.0,0.103691]
[1767750968831,0.05094528,92515.0,92501.0,0.010816]
[1767750969230,0.05094528,92515.0,92500.0,0.103691]
[1767750969430,0.05094528,92515.0,92501.0,0.010816]
[1767750969828,0.05094528,92515.0,92503.0,0.010816]
[1767750970735,0.05094528,92515.0,92500.0,0.103691]
[1767750971036,0.05094528,92511.0,92500.0,0.103691]
[1767750971340,0.05094528,92511.0,92489.0,0.10437179]
[1767750971631,0.05094528,92510.0,92500.0,0.102161]
[1767750972032,0.09107745,92510.0,92500.0,0.102161]
[1767750972335,0.05094528,92508.0,92500.0,0.103691]
[1767750972538,0.05094528,92508.0,92500.0,0.005221]
[1767750972724,0.05094528,92508.0,92494.0,0.010817]
[1767750972926,0.05094528,92508.0,92498.0,0.103691]
[1767750976327,0.09107745,92509.0,92498.0,0.103691]
[1767750976929,0.09107745,92509.0,92498.0,0.114507]
[1767750977129,0.05094528,92512.0,92498.0,0.114507]
[1767750977837,0.05094528,92512.0,92498.0,0.019987]
[1767750978440,0.05094528,92512.0,92500.0,0.009296]
[1767750979130,0.05094528,92512.0,92500.0,0.103691]
[1767750980437,0.05094528,92508.0,92488.0,0.06048174]
[1767750980739,0.05094528,92508.0,92490.0,0.103691]
[1767750981235,0.05094528,92512.0,92498.0,0.103691]
[1767750981444,0.05094528,92511.0,92498.0,0.103691]
[1767750982741,0.04479773,92517.0,92498.0,0.103691]
[1767750983140,0.010815,92515.0,92498.0,0.103691]
[1767750984142,0.010815,92515.0,92494.0,0.010817]
[1767750984341,0.010815,92515.0,92500.0,0.103691]
[1767750984743,0.05094528,92514.0,92494.0,0.010817]
[1767750984949,0.05094528,92514.0,92500.0,0.103691]
[1767750985631,0.05094528,92514.0,92500.0,0.003611]
[1767750986028,0.05094528,92516.0,92500.0,0.003611]
[1767750986233,0.05094528,92516.0,92500.0,0.011697]
[1767750986743,0.05094528,92516.0,92500.0,0.000881]
[1767750987043,0.05094528,92516.0,92500.0,0.103691]
[1767750988143,0.04479773,92517.0,92500.0,0.103691]
[1767750988346,0.04479773,92517.0,92507.0,0.010815]
[1767750988543,0.09196,92525.0,92506.0,0.103691]
[1767750988744,0.05094528,92532.0,92515.0,0.103691]
[1767750988945,0.14290528,92532.0,92520.0,0.103691]
[1767750989147,0.06175828,92531.0,92512.0,0.09292403]
[1767750989540,0.06175828,92531.0,92512.0,0.10373903]
[1767750990152,0.07734647,92531.0,92512.0,0.10373903]
[1767750990351,0.05094528,92530.0,92512.0,0.10373903]
[1767750992450,0.02640119,92531.0,92514.0,0.010815]
[1767750992646,0.09023395,92531.0,92514.0,0.010815]
[1767750993347,0.010813,92528.0,92513.0,0.09226568]
[1767750993553,0.07464576,92528.0,92510.0,0.103691]
[1767750993762,0.06383276,92518.0,92502.0,0.09226568]
[1767750994237,0.15958128,92521.0,92502.0,0.09226568]
[1767750994439,0.06383276,92526.0,92511.0,0.010815]
[1767750994752,0.06383276,92526.0,92508.0,0.010815]
[1767750994941,0.07464576,92526.0,92510.0,0.103691]
[1767750996950,0.07464576,92526.0,92510.0,0.114506]
[1767750997557,0.07464576,92526.0,92510.0,0.010815]
[1767750997858,0.07464576,92526.0,92510.0,0.114506]
[1767750999958,0.07464576,92526.0,92506.0,0.09226568]
[1767751000262,0.07464576,92526.0,92510.0,0.103691]
[1767751000657,0.010813,92529.0,92513.0,0.010815]
[1767751000847,0.010813,92529.0,92513.0,0.009905]
[1767751001048,0.07464576,92529.0,92513.0,0.009905]
[1767751001348,0.07464576,92529.0,92510.0,0.103691]
[1767751001549,0.07464576,92529.0,92519.0,0.103691]
[1767751001849,0.010813,92529.0,92519.0,0.103691]
[1767751002453,0.010813,92529.0,92519.0,0.051851]
[1767751003066,0.010813,92528.0,92519.0,0.051851]
[1767751003357,0.010813,92528.0,92514.0,0.09226568]
[1767751003558,0.010813,92526.0,92514.0,0.09226568]
[1767751007560,0.07464576,92530.0,92510.0,0.17433463]
[1767751007762,0.010813,92525.0,92511.0,0.010815]
[1767751010259,0.010814,92521.0,92510.0,0.103691]
[1767751010448,0.010814,92524.0,92510.0,0.103691]
[1767751010653,0.010814,92524.0,92510.0,0.114506]
[1767751010855,0.010814,92524.0,92511.0,0.010815]
[1767751011471,0.010814,92524.0,92510.0,0.103691]
[1767751011970,0.010814,92524.0,92510.0,0.114506]
[1767751012658,0.06383276,92529.0,92510.0,0.114506]
[1767751013168,0.06383276,92529.0,92510.0,0.103691]
[1767751014065,0.06383276,92527.0,92510.0,0.103691]
[1767751014466,0.010814,92521.0,92510.0,0.114506]
[1767751014666,0.010814,92521.0,92510.0,0.103691]
[1767751015278,0.15958128,92545.0,92522.0,0.05453372]
[1767751015473,0.010811,92542.0,92530.0,0.04586956]
[1767751015764,0.010811,92543.0,92530.0,0.103691]
[1767751015957,0.010811,92541.0,92525.0,0.05453372]
[1767751016163,0.010811,92541.0,92526.0,0.010813]
[1767751016861,0.16660376,92544.0,92528.0,0.010813]
[1767751017670,0.102771,92544.0,92528.0,0.010813]
[1767751018171,0.102771,92544.0,92525.0,0.1467994]
[1767751018768,0.16564476,92544.0,92525.0,0.1467994]
[1767751019170,0.16564476,92544.0,92527.0,0.010813]
[1767751020169,0.15483376,92544.0,92527.0,0.010813]
[1767751020373,0.15483376,92544.0,92529.0,0.010813]
[1767751020871,0.15483376,92544.0,92526.0,0.010813]
[1767751021764,0.010811,92543.0,92525.0,0.1467994]
[1767751022264,0.010811,92543.0,92530.0,0.103691]
[1767751022469,0.09196,92544.0,92530.0,0.103691]
[1767751026569,0.09196,92544.0,92529.0,0.010813]
[1767751027878,0.010811,92543.0,92528.0,0.09788075]
[1767751028377,0.010811,92543.0,92528.0,0.10869375]
[1767751029186,0.09196,92544.0,92529.0,0.010813]
[1767751029382,0.15958959,92563.0,92537.0,0.00177316]
[1767751029568,0.010809,92561.0,92545.0,0.010811]
[1767751029768,0.06075588,92561.0,92545.0,0.010811]
[1767751030378,0.06075588,92561.0,92542.0,0.010811]
[1767751030575,0.06075588,92561.0,92544.0,0.010811]
[1767751030976,0.07156588,92550.0,92537.0,0.09196]
[1767751031281,0.07156588,92556.0,92538.0,0.0006136]
[1767751031984,0.07156588,92556.0,92539.0,0.010812]
[1767751032981,0.06075588,92556.0,92541.0,0.010811]
[1767751033170,0.06075588,92556.0,92543.0,0.010811]
[1767751033378,0.15958959,92559.0,92538.0,0.09849435]
[1767751033674,0.15958959,92559.0,92538.0,0.09788075]
[1767751035370,0.06075588,92558.0,92538.0,0.09788075]
[1767751037081,0.06075588,92556.0,92538.0,0.09788075]
[1767751037277,0.06075588,92556.0,92541.0,0.010811]
[1767751037473,0.09883371,92557.0,92538.0,0.09788075]
[1767751038280,0.09883371,92557.0,92543.0,0.010811]
[1767751040181,0.09883371,92557.0,92540.0,0.010811]
[1767751040381,0.09883371,92557.0,92542.0,0.010811]
[1767751040983,0.07156488,92558.0,92542.0,0.010811]
[1767751041981,0.07156488,92558.0,92539.0,0.010812]
[1767751042288,0.11556541,92561.0,92537.0,0.09196]
[1767751042289,0.07156588,92553.0,92537.0,0.09196]
[1767751042474,0.01081,92553.0,92537.0,0.09196]
[1767751043787,0.01081,92553.0,92536.0,0.010812]
[1767751043977,0.01081,92553.0,92537.0,0.09192]
[1767751044788,0.07156588,92553.0,92537.0,0.09192]
[1767751045194,0.07156588,92553.0,92537.0,0.102732]
[1767751047287,0.01081,92553.0,92537.0,0.102732]
[1767751047791,0.01081,92553.0,92538.0,0.010812]
[1767751047984,0.01081,92553.0,92537.0,0.09192]
[1767751047985,0.06075588,92569.0,92545.0,0.09788075]
[1767751048190,0.06075588,92565.0,92547.0,0.010811]
[1767751048484,0.00216033,92579.0,92549.0,0.09788075]
[1767751048485,0.06075588,92574.0,92549.0,0.09788075]
[1767751048674,0.06075588,92572.0,92554.0,0.01081]
[1767751049082,0.06075588,92569.0,92551.0,0.18980075]
[1767751049287,0.09883371,92563.0,92551.0,0.09192]
[1767751049882,0.09192,92575.0,92551.0,0.09192]
[1767751049883,0.09883371,92568.0,92551.0,0.09192]
[1767751050089,0.15958959,92568.0,92551.0,0.09192]
[1767751050679,0.06075588,92567.0,92551.0,0.09192]
[1767751052286,0.09883371,92568.0,92552.0,0.01081]
[1767751054192,0.05511138,92569.0,92552.0,0.01081]
[1767751055094,0.05511138,92569.0,92554.0,0.01081]
[1767751056583,0.05511138,92566.0,92551.0,0.09192]
[1767751057193,0.05511138,92566.0,92551.0,0.10273]
[1767751057691,0.05511138,92566.0,92553.0,0.01081]
[1767751059491,0.05511138,92566.0,92551.0,0.09192]
[1767751060300,0.05511138,92566.0,92554.0,0.01081]
[1767751062096,0.05511138,92566.0,92551.0,0.09192]
[1767751062491,0.05511138,92566.0,92556.0,0.01081]
[1767751063999,0.05511138,92566.0,92553.0,0.01081]
[1767751064497,0.05511138,92566.0,92551.0,0.09192]
[1767751064498,0.05511138,92570.0,92551.0,0.18334223]
[1767751064803,0.05511138,92570.0,92560.0,0.010809]
[1767751066994,0.010807,92577.0,92560.0,0.010809]
[1767751067201,0.05511138,92576.0,92552.0,0.09142223]
[1767751067592,0.06591838,92576.0,92554.0,0.09142223]
[1767751068099,0.06591838,92576.0,92560.0,0.010809]
[1767751068301,0.05511138,92575.0,92560.0,0.010809]
[1767751068498,0.14819134,92575.0,92560.0,0.010809]
[1767751068698,0.05511138,92574.0,92560.0,0.010809]
[1767751069796,0.14819134,92574.0,92560.0,0.010809]
[1767751070001,0.05511138,92572.0,92557.0,0.01081]
[1767751070202,0.05511138,92572.0,92559.0,0.010809]
[1767751071101,0.05511138,92572.0,92554.0,0.09142223]
[1767751071400,0.05511138,92572.0,92560.0,0.010809]
[1767751071598,0.05511138,92572.0,92562.0,0.010809]
[1767751071801,0.05511138,92572.0,92554.0,0.09142223]
[1767751071802,0.05511138,92575.0,92556.0,0.01081]
[1767751073300,0.09307996,92584.0,92561.0,0.03169447]
[1767751073501,0.09192,92594.0,92572.0,0.010808]
[1767751073805,0.010806,92590.0,92572.0,0.010808]
[1767751074004,0.010806,92588.0,92572.0,0.010808]
[1767751075005,0.01741133,92588.0,92572.0,0.010808]
[1767751075309,0.010806,92589.0,92569.0,0.010808]
[1767751075502,0.05511138,92587.0,92569.0,0.010808]
[1767751075704,0.05511138,92585.0,92569.0,0.010808]
[1767751077208,0.05511138,92585.0,92564.0,0.09078587]
[1767751077404,0.05511138,92585.0,92564.0,0.1822081]
[1767751077708,0.05511138,92585.0,92570.0,0.010808]
[1767751078206,0.05511138,92585.0,92572.0,0.010808]
[1767751078808,0.05511138,92585.0,92569.0,0.010808]
[1767751079004,0.05511138,92585.0,92564.0,0.1822081]
[1767751079300,0.05511138,92585.0,92572.0,0.010808]
[1767751079607,0.05511138,92585.0,92565.0,0.12052729]
[1767751080106,0.05332948,92590.0,92568.0,0.02733027]
[1767751080319,0.05332948,92589.0,92568.0,0.02733027]
[1767751080503,0.05332948,92587.0,92567.0,0.09264846]
[1767751080704,0.05332948,92583.0,92564.0,0.02733027]
[1767751080905,0.05332948,92589.0,92566.0,0.11997873]
[1767751081106,0.05332948,92588.0,92566.0,0.11997873]
[1767751081303,0.05332948,92583.0,92563.0,0.02669827]
[1767751081503,0.05237872,92566.0,92553.0,0.09192]
[1767751081703,0.14352179,92559.0,92545.0,0.09192]
[1767751081904,0.09114307,92556.0,92543.0,0.09192]
[1767751082106,0.09114307,92556.0,92545.0,0.010811]
[1767751082910,0.09114307,92556.0,92544.0,0.010811]
[1767751083810,0.09114307,92556.0,92549.0,0.00216103]
[1767751084405,0.09114307,92550.0,92540.0,0.09192]
[1767751084603,0.09114307,92548.0,92540.0,0.09192]
[1767751085710,0.05237872,92553.0,92540.0,0.09192]
[1767751085711,0.14352179,92553.0,92540.0,0.09192]
[1767751086309,0.14352179,92553.0,92540.0,0.102732]
[1767751086517,0.14352179,92553.0,92540.0,0.09192]
[1767751089212,0.09114307,92553.0,92540.0,0.09192]
[1767751095319,0.09114307,92553.0,92540.0,0.102732]
[1767751100618,0.09114307,92553.0,92542.0,0.010811]
[1767751100826,0.09114307,92553.0,92540.0,0.09192]
[1767751101115,0.09114307,92553.0,92541.0,0.010811]
[1767751101512,0.09114307,92559.0,92541.0,0.010811]
[1767751101713,0.01081,92557.0,92541.0,0.010811]
[1767751101916,0.10195307,92557.0,92541.0,0.010811]
[1767751102119,0.15433179,92557.0,92541.0,0.010811]
[1767751102616,0.09114307,92556.0,92541.0,0.010811]
[1767751103316,0.14352179,92556.0,92541.0,0.010811]
[1767751104321,0.09114307,92555.0,92541.0,0.010811]
[1767751106421,0.09114307,92555.0,92540.0,0.09192]
[1767751106609,0.09114307,92568.0,92556.0,0.01081]
[1767751106815,0.09114307,92568.0,92551.0,0.05188478]
[1767751107421,0.09114307,92568.0,92554.0,0.01081]
[1767751107620,0.14352179,92568.0,92558.0,0.10361017]
[1767751107820,0.09114307,92568.0,92555.0,0.01081]
[1767751108023,0.09114307,92568.0,92553.0,0.01081]
[1767751108218,0.09114307,92568.0,92555.0,0.01081]
[1767751109222,0.09114307,92568.0,92556.0,0.01081]
[1767751109612,0.09192,92575.0,92551.0,0.05188478]
[1767751109613,0.09192,92575.0,92558.0,0.15549495]
[1767751109915,0.14568212,92579.0,92566.0,0.010809]
[1767751110113,0.14352179,92578.0,92566.0,0.010809]
[1767751110331,0.09114307,92577.0,92566.0,0.010809]
[1767751110516,0.14352179,92575.0,92563.0,0.010809]
[1767751110716,0.00216033,92579.0,92561.0,0.09192]
[1767751110717,0.14352179,92572.0,92561.0,0.09192]
[1767751110916,0.14352179,92571.0,92561.0,0.09192]
[1767751111125,0.09114307,92569.0,92561.0,0.09192]
[1767751111619,0.05291231,92574.0,92562.0,0.010809]
[1767751111821,0.14362839,92574.0,92562.0,0.010809]
[1767751112415,0.09071608,92573.0,92562.0,0.010809]
[1767751112720,0.05291231,92572.0,92562.0,0.010809]
[1767751113019,0.09071608,92562.0,92554.0,0.09192]
[1767751113224,0.05291231,92561.0,92554.0,0.00711]
[1767751113423,0.09071608,92554.0,92548.0,0.09192]
[1767751113719,0.010807,92576.0,92545.0,0.09192]
[1767751113720,0.09071608,92552.0,92545.0,0.09192]
[1767751113926,0.09071608,92551.0,92544.0,0.09192]
[1767751114624,0.09071608,92551.0,92544.0,0.102731]
[1767751114816,0.09071608,92558.0,92544.0,0.09192]
[1767751115626,0.09071608,92558.0,92544.0,0.102731]
[1767751116730,0.09071608,92558.0,92544.0,0.07476571]
[1767751118819,0.09071608,92558.0,92546.0,0.010811]
[1767751119418,0.09071608,92556.0,92544.0,0.06395471]
[1767751119621,0.09071608,92554.0,92544.0,0.06395471]
[1767751120017,0.09071608,92553.0,92544.0,0.06395471]
[1767751120222,0.14362839,92553.0,92544.0,0.06395471]
[1767751121131,0.09071608,92550.0,92531.0,0.05309619]
[1767751121427,0.09071608,92550.0,92540.0,0.05975481]
[1767751121832,0.09071608,92550.0,92533.0,0.05309619]
[1767751122029,0.09071608,92550.0,92533.0,0.45309619]
[1767751122230,0.09071608,92550.0,92539.0,0.010812]
[1767751122434,0.14362839,92550.0,92539.0,0.010812]
[1767751123131,0.09071608,92550.0,92541.0,0.010811]
[1767751123531,0.09071608,92550.0,92540.0,0.010812]
[1767751124017,0.14362839,92550.0,92540.0,0.010812]
[1767751124218,0.09071608,92550.0,92540.0,0.010812]
[1767751124423,0.09071608,92550.0,92542.0,0.010811]
[1767751125724,0.14362839,92549.0,92539.0,0.010812]
[1767751125925,0.09071608,92548.0,92539.0,0.102732]
[1767751128837,0.09071608,92548.0,92542.0,0.010811]
[1767751129031,0.09071608,92548.0,92539.0,0.09192]
[1767751129238,0.05291231,92552.0,92539.0,0.09192]
[1767751129430,0.09071608,92553.0,92539.0,0.09192]
[1767751130133,0.09071608,92553.0,92543.0,0.010811]
[1767751130330,0.09071608,92553.0,92544.0,0.010811]
[1767751130730,0.09071608,92553.0,92547.0,0.010811]
[1767751130930,0.05291231,92559.0,92549.0,0.01081]
[1767751131530,0.05291231,92559.0,92547.0,0.010811]
[1767751131730,0.05291231,92559.0,92545.0,0.010811]
[1767751132941,0.05291231,92557.0,92545.0,0.010811]
[1767751133443,0.09071608,92555.0,92540.0,0.10361017]
[1767751137056,0.00442469,101310.0,92516.0,0.05309619]
[1767751137057,0.09071608,92537.0,92516.0,0.05309619]
[1767751137245,0.09071608,92532.0,92520.0,0.09192]
[1767751137449,0.09192,92547.0,92520.0,0.09192]
[1767751137450,0.09071608,92538.0,92520.0,0.14501619]
[1767751137654,0.09071608,92538.0,92525.0,0.010813]
[1767751137859,0.09071608,92538.0,92527.0,0.010813]
[1767751139462,0.09071608,92538.0,92525.0,0.010813]
[1767751139853,0.10693267,92538.0,92525.0,0.010813]
[1767751140252,0.15164349,92535.0,92522.0,0.010814]
[1767751141157,0.09750413,92534.0,92520.0,0.102734]
[1767751141363,0.09574343,92532.0,92520.0,0.102734]
[1767751141661,0.09574343,92531.0,92520.0,0.102734]
[1767751142260,0.09574343,92540.0,92526.0,0.010813]
[1767751142456,0.14751167,92536.0,92520.0,0.19553017]
[1767751142656,0.14751167,92536.0,92520.0,0.09192]
[1767751142854,0.05176824,92518.0,92512.0,0.09192]
[1767751143052,0.09574343,92519.0,92497.0,0.06295263]
[1767751143053,0.09574343,92516.0,92507.0,0.010815]
[1767751143463,0.09574343,92516.0,92503.0,0.081104]
[1767751144062,0.14751167,92516.0,92503.0,0.081104]
[1767751144264,0.09574343,92516.0,92503.0,0.081104]
[1767751145155,0.09574343,92516.0,92505.0,0.010816]
[1767751147063,0.09574343,92523.0,92503.0,0.081104]
[1767751147268,0.09574343,92522.0,92503.0,0.081104]
[1767751147669,0.09574343,92521.0,92503.0,0.081104]
[1767751148265,0.09574343,92521.0,92508.0,0.010815]
[1767751149373,0.09574343,92520.0,92508.0,0.010815]
[1767751150771,0.09574343,92520.0,92510.0,0.010815]
[1767751150968,0.09574343,92520.0,92512.0,0.010815]
[1767751156978,0.09574343,92520.0,92509.0,0.010815]
[1767751157181,0.09574343,92520.0,92510.0,0.010815]
[1767751157986,0.05176824,92531.0,92506.0,0.05213563]
[1767751158283,0.05176824,92534.0,92520.0,0.010814]
[1767751158480,0.05176824,92534.0,92522.0,0.010814]
[1767751159078,0.05176824,92534.0,92519.0,0.010814]
[1767751160083,0.05176824,92532.0,92519.0,0.010814]
[1767751160281,0.05176824,92529.0,92519.0,0.010814]
[1767751160482,0.09196,92535.0,92516.0,0.010814]
[1767751160483,0.05176824,92527.0,92516.0,0.010814]
[1767751160786,0.09574343,92528.0,92516.0,0.010814]
[1767751161985,0.05176824,92527.0,92513.0,0.010815]
[1767751162284,0.05176824,92525.0,92513.0,0.010815]
[1767751163088,0.05176824,92525.0,92515.0,0.010814]
[1767751163287,0.09574343,92526.0,92515.0,0.010814]
[1767751163587,0.00623103,101100.0,92514.0,0.14540373]
[1767751163588,0.05176824,92544.0,92514.0,0.14540373]
[1767751163885,0.05176824,92544.0,92527.0,0.010813]
[1767751164189,0.05176824,92542.0,92534.0,0.010812]
[1767751164388,0.05176824,92541.0,92534.0,0.010812]
[1767751164689,0.05176824,92537.0,92531.0,0.010813]
[1767751165077,0.09574343,92538.0,92533.0,0.010812]
[1767751166486,0.09574343,92545.0,92523.0,0.1040821]
[1767751166682,0.09574343,92545.0,92524.0,0.09196]
[1767751167189,0.05176824,92540.0,92524.0,0.09196]
[1767751167384,0.14751167,92540.0,92524.0,0.09196]
[1767751167785,0.09574343,92540.0,92524.0,0.09196]
[1767751168083,0.09574343,92540.0,92534.0,0.010812]
[1767751171291,0.09574343,92540.0,92531.0,0.010813]
[1767751171493,0.04941205,92544.0,92525.0,0.04954048]
[1767751171793,0.04941205,92541.0,92524.0,0.09196]
[1767751173081,0.04941205,92541.0,92534.0,0.010812]
[1767751174577,0.04941205,92537.0,92524.0,0.09196]
[1767751174785,0.04941205,92522.0,92510.0,0.09196]
[1767751174982,0.04941205,92522.0,92516.0,0.010814]
[1767751175184,0.09215243,92523.0,92516.0,0.010814]
[1767751175488,0.14156448,92532.0,92511.0,0.04954048]
[1767751175679,0.14156448,92531.0,92522.0,0.010814]
[1767751175882,0.04941205,92529.0,92522.0,0.010814]
[1767751176797,0.04941205,92529.0,92519.0,0.010814]
[1767751177094,0.04941205,92529.0,92521.0,0.010814]
[1767751181500,0.14156448,92529.0,92518.0,0.010814]
[1767751181701,0.09196,92536.0,92518.0,0.010814]
[1767751181702,0.14156448,92527.0,92518.0,0.010814]
[1767751181894,0.14156448,92525.0,92510.0,0.09196]
[1767751182201,0.14156448,92525.0,92516.0,0.010814]
[1767751183603,0.04941205,92521.0,92510.0,0.102775]
[1767751183990,0.04941205,92521.0,92510.0,0.09196]
[1767751184404,0.04941205,92521.0,92511.0,0.010815]
[1767751184605,0.04941205,92521.0,92513.0,0.010815]
[1767751185115,0.09215243,92522.0,92513.0,0.010815]
[1767751185706,0.04941205,92518.0,92510.0,0.102775]
[1767751186016,0.09215243,92519.0,92510.0,0.102775]
[1767751186316,0.09215243,92519.0,92512.0,0.010815]
[1767751186612,0.04941205,92516.0,92505.0,0.05950268]
[1767751186818,0.09196,92536.0,92503.0,0.09196]
[1767751186819,0.04941205,92510.0,92503.0,0.09196]
[1767751187012,0.04941205,92521.0,92502.0,0.09196]
[1767751187209,0.04941205,92521.0,92491.0,0.14849639]
[1767751187210,0.04941205,92521.0,92498.0,0.09196]
[1767751187604,0.04941205,92521.0,92504.0,0.010816]
[1767751188610,0.06022605,92521.0,92498.0,0.09196]
[1767751188802,0.09215243,92520.0,92501.0,0.010816]
[1767751189003,0.04941205,92517.0,92501.0,0.010816]
[1767751189210,0.04941205,92511.0,92501.0,0.010816]
[1767751189417,0.04941205,92511.0,92503.0,0.010816]
[1767751190411,0.04941205,92510.0,92500.0,0.010816]
[1767751190619,0.09196,92524.0,92497.0,0.010817]
[1767751190620,0.04941205,92506.0,92497.0,0.010817]
[1767751191317,0.14156448,92513.0,92497.0,0.010817]
[1767751191504,0.04941205,92512.0,92497.0,0.010817]
[1767751192111,0.14156448,92512.0,92497.0,0.010817]
[1767751192310,0.04941205,92511.0,92497.0,0.010817]
[1767751195322,0.04941205,92506.0,92493.0,0.09196]
[1767751196122,0.04941205,92506.0,92496.0,0.010817]
[1767751198422,0.04941205,92506.0,92493.0,0.102777]
[1767751198725,0.09581913,92502.0,92489.0,0.00216243]
[1767751199514,0.09581913,92502.0,92494.0,0.010817]
[1767751199818,0.00135703,92501.0,92494.0,0.010817]
[1767751200024,0.09581913,92502.0,92494.0,0.010817]